lending/lending_fUSD_20260310
["ID","MTS","AMOUNT","RATE_DAILY","PERIOD"]
[408137577,1773165048532,-566.6,0.00019726,2]
[408137578,1773165048542,-500.0,0.00019726,2]
[408137579,1773165048554,-1443.26,0.00019726,2]
[408137580,1773165048564,-4736.35,0.00019726,2]
[408137581,1773165048574,-1350.05,0.00019726,2]
[408137582,1773165048585,-500.0,0.00019726,2]
[408137583,1773165048596,-570.97,0.00019726,2]
[408137584,1773165048607,-566.6,0.00019726,2]
[408137585,1773165048618,-1443.33015745,0.00019726,2]
[408137586,1773165048629,-1350.05,0.00019726,2]
[408137587,1773165048640,-4736.35,0.00019726,2]
[408137588,1773165048652,-500.0,0.00019726,2]
[408137589,1773165048662,-570.97,0.00019726,2]
[408137590,1773165048672,-566.6,0.00019726,2]
[408137591,1773165048683,-1350.05,0.00019726,2]
[408137592,1773165048693,-4736.35,0.00019726,2]
[408137593,1773165048704,-500.0,0.00019726,2]
[408137594,1773165048716,-570.97,0.00019726,2]
[408137595,1773165048726,-566.6,0.00019726,2]
[408137596,1773165048737,-1350.05,0.00019726,2]
[408137597,1773165048748,-4736.35,0.00019726,2]
[408137598,1773165048758,-500.0,0.00019726,2]
[408137599,1773165048769,-570.97,0.00019726,2]
[408137600,1773165048779,-566.6,0.00019726,2]
[408137601,1773165048789,-1350.05,0.00019726,2]
[408137602,1773165048800,-4736.35,0.00019726,2]
[408137603,1773165048811,-500.0,0.00019726,2]
[408137604,1773165048821,-566.6,0.00019726,2]
[408137605,1773165048831,-570.97,0.00019726,2]
[408137606,1773165048841,-500.0,0.00019726,2]
[408137607,1773165048851,-4736.35,0.00019726,2]
[408137608,1773165048862,-1350.05,0.00019726,2]
[408137609,1773165048872,-566.6,0.00019726,2]
[408137610,1773165048883,-570.97,0.00019726,2]
[408137611,1773165048894,-500.0,0.00019726,2]
[408137612,1773165048904,-4736.35,0.00019726,2]
[408137613,1773165048915,-1350.23444504,0.00019726,2]
[408137614,1773165048924,-566.6,0.00019726,2]
[408137615,1773165048934,-570.97,0.00019726,2]
[408137616,1773165048943,-4736.43291464,0.00019726,2]
[408137617,1773165049067,-500.0,0.00019726,2]
[408137618,1773165049076,-570.97,0.00019726,2]
[408137619,1773165049085,-566.6,0.00019726,2]
[408137620,1773165049095,-500.0,0.00019726,2]
[408137621,1773165049104,-162.85995991,0.00019726,2]
[408137622,1773165049113,-570.97,0.00019726,2]
[408137623,1773165049122,-566.6,0.00019726,2]
[408137624,1773165049131,-500.0,0.00019726,2]
[408137625,1773165049142,-566.6,0.00019726,2]
[408137626,1773165049151,-570.97,0.00019726,2]
[408137627,1773165049161,-500.0,0.00019726,2]
[408137628,1773165049170,-570.97,0.00019726,2]
[408137629,1773165049179,-566.6,0.00019726,2]
[408137630,1773165049188,-500.0,0.00019726,2]
[408137631,1773165049197,-566.6,0.00019726,2]
[408137632,1773165049209,-570.97,0.00019726,2]
[408137633,1773165049219,-256.19319861,0.00019726,2]
[408137634,1773165049228,-566.6,0.00019726,2]
[408137635,1773165049236,-571.092885,0.00019726,2]
[408137636,1773165049247,-566.6,0.00019726,2]
[408137637,1773165049256,-566.66284641,0.00019726,2]
[408137638,1773165049266,-1250.51,0.00019726,2]
[408137639,1773165049275,-1250.51,0.00019726,2]
[408137640,1773165049285,-1250.51,0.00019726,2]
[408137641,1773165049295,-1250.51,0.00019726,2]
[408137642,1773165049304,-1250.51,0.00019726,2]
[408137643,1773165049313,-1250.51,0.00019726,2]
[408137644,1773165049322,-1250.51,0.00019726,2]
[408137645,1773165049331,-1250.51,0.00019726,2]
[408137646,1773165049340,-1250.51,0.00019726,2]
[408137647,1773165049350,-1250.51,0.00019726,2]
[408137648,1773165049358,-1250.51,0.00019726,2]
[408137649,1773165049368,-1250.51,0.00019726,2]
[408137650,1773165049377,-1250.51,0.00019726,2]
[408137651,1773165049386,-1250.51,0.00019726,2]
[408137652,1773165049395,-1250.51,0.00019726,2]
[408137653,1773165049404,-1250.51,0.00019726,2]
[408137654,1773165049413,-1250.51,0.00019726,2]
[408137655,1773165049422,-1250.51,0.00019726,2]
[408137656,1773165049431,-1250.51,0.00019726,2]
[408137657,1773165049441,-1250.51,0.00019726,2]
[408137658,1773165049450,-1250.51,0.00019726,2]
[408137659,1773165049459,-1250.51,0.00019726,2]
[408137660,1773165049468,-1250.51,0.00019726,2]
[408137661,1773165049477,-1250.68103818,0.00019726,2]
[408137662,1773165049486,-500.0,0.00019726,2]
[408137663,1773165049495,-500.0,0.00019726,2]
[408137664,1773165049507,-500.0,0.00019726,2]
[408137665,1773165049517,-500.0,0.00019726,2]
[408137666,1773165049526,-500.0,0.00019726,2]
[408137667,1773165049535,-500.0,0.00019726,2]
[408137668,1773165049545,-500.9565902,0.00019726,2]
[408137669,1773165049554,-500.0,0.00019726,2]
[408137670,1773165049563,-500.0,0.00019726,2]
[408137671,1773165049571,-500.0,0.00019726,2]
[408137672,1773165049580,-524.54846384,0.00019726,2]
[408137673,1773165049591,-500.0,0.00019726,2]
[408137674,1773165049601,-500.0,0.00019726,2]
[408137675,1773165049610,-500.0,0.00019726,2]
[408137676,1773165049621,-547.26336191,0.00019726,2]
[408137677,1773165049631,-401.37850293,0.00019726,2]
[408137678,1773165049640,-500.0,0.00019726,2]
[408137679,1773165049649,-500.5,0.00019726,2]
[408137680,1773165049660,-500.0,0.00019726,2]
[408137681,1773165049670,-500.0,0.00019726,2]
[408137682,1773165049679,-500.0,0.00019726,2]
[408137683,1773165049690,-404.44403902,0.00019726,2]
[408137684,1773165049701,-500.0,0.00019726,2]
[408137685,1773165049711,-5164.900926,0.00019726,2]
[408137686,1773165049721,-5164.900926,0.00019726,2]
[408137687,1773165049731,-5164.900926,0.00019726,2]
[408137688,1773165049742,-174.359556,0.00019726,2]
[408137689,1773165049751,-174.359556,0.00019726,2]
[408137690,1773165049760,-500.0,0.00019726,2]
[408137691,1773165049769,-500.0,0.00019726,2]
[408137692,1773165049779,-500.0,0.00019726,2]
[408137693,1773165049788,-500.0,0.00019726,2]
[408137694,1773165049797,-500.0,0.00019726,2]
[408137695,1773165049806,-500.0,0.00019726,2]
[408137696,1773165049816,-500.0,0.00019726,2]
[408137697,1773165049825,-500.0,0.00019726,2]
[408137698,1773165049835,-500.0,0.00019726,2]
[408137699,1773165049844,-500.0,0.00019726,2]
[408137700,1773165049853,-500.0,0.00019726,2]
[408137701,1773165049862,-500.0,0.00019726,2]
[408137702,1773165049872,-500.0,0.00019726,2]
[408137703,1773165049881,-500.0,0.00019726,2]
[408137704,1773165049890,-500.0,0.00019726,2]
[408137705,1773165049899,-500.0,0.00019726,2]
[408137706,1773165049909,-500.0,0.00019726,2]
[408137707,1773165049919,-500.0,0.00019726,2]
[408137708,1773165049928,-959.0,0.00019726,2]
[408137709,1773165049937,-500.0,0.00019726,2]
[408137710,1773165049945,-500.0,0.00019726,2]
[408137711,1773165049955,-500.0,0.00019726,2]
[408137712,1773165049964,-500.0,0.00019726,2]
[408137713,1773165049973,-500.0,0.00019726,2]
[408137714,1773165049982,-500.0,0.00019726,2]
[408137715,1773165049991,-500.0,0.00019726,2]
[408137716,1773165049999,-500.0,0.00019726,2]
[408137717,1773165050008,-500.0,0.00019726,2]
[408137718,1773165050018,-500.0,0.00019726,2]
[408137719,1773165050027,-500.0,0.00019726,2]
[408137720,1773165050036,-500.0,0.00019726,2]
[408137721,1773165050045,-500.0,0.00019726,2]
[408137722,1773165050054,-500.0,0.00019726,2]
[408137723,1773165050063,-500.0,0.00019726,2]
[408137724,1773165050072,-866.0,0.00019726,2]
[408137725,1773165050081,-500.0,0.00019726,2]
[408137726,1773165050090,-500.0,0.00019726,2]
[408137727,1773165050099,-500.0,0.00019726,2]
[408137728,1773165050108,-500.0,0.00019726,2]
[408137729,1773165050118,-500.0,0.00019726,2]
[408137730,1773165050127,-500.0,0.00019726,2]
[408137731,1773165050136,-500.0,0.00019726,2]
[408137732,1773165050146,-500.0,0.00019726,2]
[408137733,1773165050156,-500.0,0.00019726,2]
[408137734,1773165050165,-500.0,0.00019726,2]
[408137735,1773165050174,-500.0,0.00019726,2]
[408137736,1773165050183,-500.0,0.00019726,2]
[408137737,1773165050192,-500.0,0.00019726,2]
[408137738,1773165050204,-500.0,0.00019726,2]
[408137739,1773165050214,-500.0,0.00019726,2]
[408137740,1773165050223,-500.0,0.00019726,2]
[408137741,1773165050233,-500.0,0.00019726,2]
[408137742,1773165050242,-500.0,0.00019726,2]
[408137743,1773165050252,-500.0,0.00019726,2]
[408137744,1773165050261,-500.0,0.00019726,2]
[408137745,1773165050271,-500.0,0.00019726,2]
[408137746,1773165050281,-500.0,0.00019726,2]
[408137747,1773165050291,-500.0,0.00019726,2]
[408137748,1773165050300,-500.0,0.00019726,2]
[408137749,1773165050309,-500.0,0.00019726,2]
[408137750,1773165050319,-500.0,0.00019726,2]
[408137751,1773165050328,-500.0,0.00019726,2]
[408137752,1773165050338,-500.0,0.00019726,2]
[408137753,1773165050347,-500.0,0.00019726,2]
[408137754,1773165050357,-500.0,0.00019726,2]
[408137755,1773165050367,-500.0,0.00019726,2]
[408137756,1773165050377,-500.0,0.00019726,2]
[408137757,1773165050387,-500.0,0.00019726,2]
[408137758,1773165050396,-500.0,0.00019726,2]
[408137759,1773165050405,-500.0,0.00019726,2]
[408137760,1773165050415,-500.0,0.00019726,2]
[408137761,1773165050426,-568.0,0.00019726,2]
[408137762,1773165050436,-500.0,0.00019726,2]
[408137763,1773165050445,-500.0,0.00019726,2]
[408137764,1773165050454,-500.0,0.00019726,2]
[408137765,1773165050463,-500.0,0.00019726,2]
[408137766,1773165050472,-500.0,0.00019726,2]
[408137767,1773165050482,-544.0,0.00019726,2]
[408137768,1773165050491,-500.0,0.00019726,2]
[408137769,1773165050501,-500.0,0.00019726,2]
[408137770,1773165050511,-500.0,0.00019726,2]
[408137771,1773165050520,-500.0,0.00019726,2]
[408137772,1773165050530,-500.0,0.00019726,2]
[408137773,1773165050539,-514.0,0.00019726,2]
[408137774,1773165050548,-1585.91677,0.00019726,2]
[408137775,1773165050558,-1585.91677,0.00019726,2]
[408137776,1773165050568,-500.0,0.00019726,2]
[408137777,1773165050577,-500.0,0.00019726,2]
[408137778,1773165050586,-500.0,0.00019726,2]
[408137779,1773165050596,-243.10314305,0.00019726,2]
[408137780,1773165050606,-300.0,0.00019726,2]
[408137781,1773165050615,-300.0,0.00019726,2]
[408137782,1773165050625,-300.0,0.00019726,2]
[408137783,1773165050634,-300.0,0.00019726,2]
[408137784,1773165050643,-300.0,0.00019726,2]
[408137785,1773165050653,-300.0,0.00019726,2]
[408137786,1773165050664,-300.0,0.00019726,2]
[408137787,1773165050673,-300.0,0.00019726,2]
[408137788,1773165050684,-300.0,0.00019726,2]
[408137789,1773165050694,-300.0,0.00019726,2]
[408137790,1773165050704,-300.0,0.00019726,2]
[408137791,1773165050714,-300.0,0.00019726,2]
[408137792,1773165050723,-302.3241753,0.00019726,2]
[408137793,1773165050733,-500.0,0.00019726,2]
[408137794,1773165050743,-500.0,0.00019726,2]
[408137795,1773165050752,-500.0,0.00019726,2]
[408137796,1773165050761,-500.0,0.00019726,2]
[408137797,1773165050772,-500.0,0.00019726,2]
[408137798,1773165050781,-500.0,0.00019726,2]
[408137799,1773165050790,-500.0,0.00019726,2]
[408137800,1773165050800,-500.0,0.00019726,2]
[408137801,1773165050810,-500.0,0.00019726,2]
[408137802,1773165050819,-500.0,0.00019726,2]
[408137803,1773165050829,-500.0,0.00019726,2]
[408137804,1773165050838,-500.0,0.00019726,2]
[408137805,1773165050848,-500.0,0.00019726,2]
[408137806,1773165050857,-500.0,0.00019726,2]
[408137807,1773165050867,-500.0,0.00019726,2]
[408137808,1773165050876,-500.0,0.00019726,2]
[408137809,1773165050885,-500.0,0.00019726,2]
[408137810,1773165050895,-500.0,0.00019726,2]
[408137811,1773165050904,-500.0,0.00019726,2]
[408137812,1773165050914,-500.0,0.00019726,2]
[408137813,1773165050923,-500.0,0.00019726,2]
[408137814,1773165050933,-500.0,0.00019726,2]
[408137815,1773165050942,-500.0,0.00019726,2]
[408137816,1773165050953,-500.0,0.00019726,2]
[408137817,1773165050962,-500.0,0.00019726,2]
[408137818,1773165050971,-500.0,0.00019726,2]
[408137819,1773165050980,-500.0,0.00019726,2]
[408137820,1773165050989,-500.0,0.00019726,2]
[408137821,1773165050999,-500.0,0.00019726,2]
[408137822,1773165051008,-500.0,0.00019726,2]
[408137823,1773165051017,-500.0,0.00019726,2]
[408137824,1773165051026,-500.0,0.00019726,2]
[408137825,1773165051036,-500.0,0.00019726,2]
[408137826,1773165051046,-500.0,0.00019726,2]
[408137827,1773165051056,-500.0,0.00019726,2]
[408137828,1773165051066,-500.0,0.00019726,2]
[408137829,1773165051075,-500.0,0.00019726,2]
[408137830,1773165051085,-500.0,0.00019726,2]
[408137831,1773165051094,-500.0,0.00019726,2]
[408137832,1773165051103,-500.0,0.00019726,2]
[408137833,1773165051114,-500.0,0.00019726,2]
[408137834,1773165051123,-500.0,0.00019726,2]
[408137835,1773165051133,-500.0,0.00019726,2]
[408137836,1773165051142,-500.0,0.00019726,2]
[408137837,1773165051152,-500.0,0.00019726,2]
[408137838,1773165051161,-500.0,0.00019726,2]
[408137839,1773165051170,-500.0,0.00019726,2]
[408137840,1773165051179,-500.0,0.00019726,2]
[408137841,1773165051190,-500.0,0.00019726,2]
[408137842,1773165051199,-500.0,0.00019726,2]
[408137843,1773165051213,-500.0,0.00019726,2]
[408137844,1773165051223,-500.0,0.00019726,2]
[408137845,1773165051232,-500.0,0.00019726,2]
[408137846,1773165051242,-500.0,0.00019726,2]
[408137847,1773165051251,-500.0,0.00019726,2]
[408137848,1773165051261,-500.0,0.00019726,2]
[408137849,1773165051270,-500.0,0.00019726,2]
[408137850,1773165051281,-500.0,0.00019726,2]
[408137851,1773165051290,-500.0,0.00019726,2]
[408137852,1773165051299,-500.0,0.00019726,2]
[408137853,1773165051308,-500.0,0.00019726,2]
[408137854,1773165051318,-500.0,0.00019726,2]
[408137855,1773165051327,-500.0,0.00019726,2]
[408137856,1773165051337,-500.0,0.00019726,2]
[408137857,1773165051346,-500.0,0.00019726,2]
[408137858,1773165051356,-500.0,0.00019726,2]
[408137859,1773165051367,-500.0,0.00019726,2]
[408137860,1773165051377,-500.0,0.00019726,2]
[408137861,1773165051387,-500.0,0.00019726,2]
[408137862,1773165051397,-500.0,0.00019726,2]
[408137863,1773165051409,-500.0,0.00019726,2]
[408137864,1773165051419,-500.0,0.00019726,2]
[408137865,1773165051429,-500.0,0.00019726,2]
[408137866,1773165051438,-500.0,0.00019726,2]
[408137867,1773165051447,-500.0,0.00019726,2]
[408137868,1773165051457,-500.0,0.00019726,2]
[408137869,1773165051467,-500.0,0.00019726,2]
[408137870,1773165051478,-500.0,0.00019726,2]
[408137871,1773165051488,-500.0,0.00019726,2]
[408137872,1773165051498,-500.0,0.00019726,2]
[408137873,1773165051507,-533.35298099,0.00019726,2]
[408137874,1773165051517,-151.0,0.00019726,2]
[408137875,1773165051526,-151.0,0.00019726,2]
[408137876,1773165051536,-151.0,0.00019726,2]
[408137877,1773165051547,-197.527773,0.00019726,2]
[408137878,1773165051556,-151.0,0.00019726,2]
[408137879,1773165051565,-787.0,0.00019726,2]
[408137880,1773165051575,-250.0,0.00019726,2]
[408137881,1773165051584,-219.0,0.00019748,2]
[408137882,1773165051594,-3957.85580897,0.00019763,2]
[408137883,1773165051603,-561.82447497,0.00019763,2]
[408137884,1773165051612,-1000.0,0.00019767,2]
[408137885,1773165051621,-286.92794652,0.00019773,2]
[408137886,1773165051631,-150.0,0.00019773,2]
[408137887,1773165051640,-500.0,0.00019773,2]
[408137888,1773165051651,-500.0,0.00019773,2]
[408137889,1773165051660,-161.52562053,0.00019773,2]
[408137890,1773165051670,-500.0,0.00019773,2]
[408137891,1773165051679,-500.0,0.00019773,2]
[408137892,1773165051689,-309.41665429,0.00019773,2]
[408137893,1773165051698,-500.0,0.00019773,2]
[408137894,1773165051707,-525.62729725,0.00019773,2]
[408137895,1773165051716,-500.0,0.00019773,2]
[408137896,1773165051725,-500.0,0.00019773,2]
[408137897,1773165051734,-500.0,0.00019773,2]
[408137898,1773165051743,-336.48617471,0.00019773,2]
[408137899,1773165051752,-500.0,0.00019773,2]
[408137900,1773165051762,-500.0,0.00019773,2]
[408137901,1773165051771,-500.0,0.00019773,2]
[408137902,1773165051781,-500.0,0.00019773,2]
[408137903,1773165051792,-500.24925891,0.00019773,2]
[408137904,1773165051802,-500.0,0.00019773,2]
[408137905,1773165051810,-500.0,0.00019773,2]
[408137906,1773165051819,-164.1797662,0.00019773,2]
[408137907,1773165051828,-500.0,0.00019773,2]
[408137908,1773165051838,-500.0,0.00019773,2]
[408137909,1773165051847,-500.0,0.00019773,2]
[408137910,1773165051856,-500.0,0.00019773,2]
[408137911,1773165051865,-500.0,0.00019773,2]
[408137912,1773165051875,-500.0,0.00019773,2]
[408137913,1773165051884,-210.19245283,0.00019773,2]
[408137914,1773165051893,-500.0,0.00019773,2]
[408137915,1773165051902,-500.0,0.00019773,2]
[408137916,1773165051911,-161.50637135,0.00019773,2]
[408137917,1773165051921,-500.0,0.00019773,2]
[408137918,1773165051930,-158.89335882,0.00019773,2]
[408137919,1773165051941,-164.4040302,0.00019773,2]
[408137920,1773165051950,-500.0,0.00019773,2]
[408137921,1773165051961,-500.0,0.00019773,2]
[408137922,1773165051970,-500.19933179,0.00019773,2]
[408137923,1773165051980,-500.0,0.00019773,2]
[408137924,1773165051990,-500.0,0.00019773,2]
[408137925,1773165052000,-500.0,0.00019773,2]
[408137926,1773165052009,-500.0,0.00019773,2]
[408137927,1773165052018,-500.0,0.00019773,2]
[408137928,1773165052028,-338.5975808,0.00019773,2]
[408137929,1773165052039,-500.19685753,0.00019773,2]
[408137930,1773165052048,-500.0,0.00019773,2]
[408137931,1773165052058,-500.0,0.00019773,2]
[408137932,1773165052067,-564.98385943,0.00019773,2]
[408137933,1773165052077,-500.0,0.00019773,2]
[408137934,1773165052086,-500.0,0.00019773,2]
[408137935,1773165052095,-500.0,0.00019773,2]
[408137936,1773165052104,-311.58893439,0.00019773,2]
[408137937,1773165052114,-500.0,0.00019773,2]
[408137938,1773165052125,-555.93722716,0.00019773,2]
[408137939,1773165052135,-500.0,0.00019773,2]
[408137940,1773165052144,-500.0,0.00019773,2]
[408137941,1773165052155,-500.30661953,0.00019773,2]
[408137942,1773165052164,-162.48933507,0.00019773,2]
[408137943,1773165052174,-500.0,0.00019773,2]
[408137944,1773165052183,-500.0,0.00019773,2]
[408137945,1773165052193,-438.17886325,0.00019773,2]
[408137946,1773165052206,-500.0,0.00019773,2]
[408137947,1773165052220,-500.0,0.00019773,2]
[408137948,1773165052230,-500.0,0.00019773,2]
[408137949,1773165052239,-500.0,0.00019773,2]
[408137950,1773165052248,-500.0,0.00019773,2]
[408137951,1773165052259,-513.88974837,0.00019773,2]
[408137952,1773165052268,-166.21138236,0.00019773,2]
[408137953,1773165052280,-210.17759829,0.00019773,2]
[408137954,1773165052289,-500.0,0.00019773,2]
[408137955,1773165052298,-500.0,0.00019773,2]
[408137956,1773165052307,-500.0,0.00019773,2]
[408137957,1773165052316,-162.45092924,0.00019773,2]
[408137958,1773165052326,-168.09945814,0.00019773,2]
[408137959,1773165052335,-500.17118036,0.00019773,2]
[408137960,1773165052345,-168.0,0.00019776,2]
[408137961,1773165052354,-500.0,0.00019778,2]
[408137962,1773165052363,-500.0,0.00019781,7]
[408137963,1773165052372,-3491.0,0.000198,2]
[408137964,1773165052382,-755.98,0.000198,2]
[408137965,1773165052391,-478.92,0.000198,7]
[408137966,1773165052401,-250.0,0.00019817,2]
[408137967,1773165052411,-1000.0,0.00019822,2]
[408137968,1773165052420,-168.0,0.00019831,2]
[408137969,1773165052429,-523.65373692,0.00019833,2]
[408137970,1773165052441,-168.0,0.00019843,2]
[408137971,1773165052450,-1000.0,0.00019849,2]
[408137972,1773165052459,-1344.16,0.00019884,2]
[408137973,1773165052469,-153.40246871,0.00019888,2]
[408137974,1773165052478,-168.0,0.00019892,2]
[408137975,1773165052488,-757.9640289,0.000199,2]
[408137976,1773165052498,-500.0,0.000199,2]
[408137977,1773165052507,-500.0,0.000199,2]
[408137978,1773165052517,-500.0,0.000199,2]
[408137979,1773165052528,-333.18627222,0.000199,2]
[408137980,1773165052538,-9898.56304388,0.000199,3]
[408137981,1773165052547,-2873.19905948,0.000199,2]
[408137982,1773165052556,-400.0486083,0.000199,2]
[408137983,1773165052569,-2865.1800793,0.000199,2]
[408137984,1773165052578,-178.13946883,0.000199,2]
[408137985,1773165052587,-356.95451716,0.000199,2]
[408137986,1773165052597,-3957.85580897,0.000199,2]
[408137987,1773165052606,-561.82447497,0.000199,2]
[408137988,1773165052615,-204.53,0.00019902,2]
[408137989,1773165052625,-481.96583149,0.00019915,2]
[408137990,1773165052634,-168.0,0.00019942,2]
[408137991,1773165052643,-1467.28,0.00019972,2]
[408137992,1773165052654,-150.0,0.00019973,2]
[408137993,1773165052663,-165.86350306,0.00019973,2]
[408137994,1773165052672,-300.0,0.00019979,2]
[408137995,1773165052682,-1000.0,0.00019979,2]
[408137996,1773165052691,-500.0,0.0001998,7]
[408137997,1773165052700,-118922.92157781,0.0001998,2]
[408137998,1773165052710,-632.49635795,0.0001999,2]
[408137999,1773165052719,-632.49635795,0.0001999,2]
[408138000,1773165052728,-33196.02130339,0.00019999,2]
[408138001,1773165052738,-207.334735,0.00019999,2]
[408138002,1773165052748,-151.0,0.00019999,2]
[408138003,1773165052757,-199.540689,0.00019999,2]
[408138004,1773165052767,-151.0,0.00019999,2]
[408138005,1773165052776,-151.0,0.00019999,2]
[408138006,1773165052786,-199.730346,0.00019999,2]
[408138007,1773165052795,-151.0,0.00019999,2]
[408138008,1773165052805,-151.0,0.00019999,2]
[408138009,1773165052815,-151.0,0.00019999,2]
[408138010,1773165052824,-260.9008,0.00019999,2]
[408138011,1773165052834,-183.911991,0.00019999,2]
[408138012,1773165052843,-183.911991,0.00019999,2]
[408138013,1773165052853,-183.911991,0.00019999,2]
[408138014,1773165052862,-183.911991,0.00019999,2]
[408138015,1773165052871,-151.0,0.00019999,2]
[408138016,1773165052880,-153.123442,0.00019999,2]
[408138017,1773165052889,-5000.0,0.00019999,2]
[408138018,1773165052898,-5000.0,0.00019999,2]
[408138019,1773165052908,-5000.0,0.00019999,2]
[408138020,1773165052917,-5000.0,0.00019999,2]
[408138021,1773165052928,-5000.0,0.00019999,2]
[408138022,1773165052937,-5000.0,0.00019999,2]
[408138023,1773165052947,-5000.0,0.00019999,2]
[408138024,1773165052957,-151.0,0.00019999,2]
[408138025,1773165052970,-3534.676574,0.00019999,2]
[408138026,1773165052979,-151.0,0.00019999,2]
[408138027,1773165052992,-187000.64864893,0.0002,2]
[408138028,1773165053978,-4152.23536526,0.00018757,2]
[408138029,1773165053988,-7157.60782478,0.0002,2]
[408138030,1773165054001,-5001.5,0.0002,2]
[408138031,1773165054026,-679.4249752,0.0002,2]
[408138032,1773165054365,-1819.84545398,0.00017233,2]
[408138033,1773165055167,-7224.01570143,0.00017233,2]
[408138034,1773165055179,-1256.74997016,0.00017233,2]
[408138035,1773165055189,-2000.0,0.000199,2]
[408138036,1773165055198,-121918.58319261,0.0002,2]
[408138037,1773165055213,-301966.42480575,0.0002,2]
[408138038,1773165055225,-111506.81243492,0.0002,2]
[408138043,1773165730697,1000.0,0.000135,2]
[408138045,1773165941386,-729.40411693,0.00015135,2]
[408138046,1773165941481,-395.50814266,0.00015135,2]
[408138047,1773166114506,-300.0,0.00015113,2]
[408138048,1773166114532,-300.0,0.00015113,2]
[408138049,1773166125084,-11405.0,0.00015114,2]
[408138061,1773166192777,420.21,7.399e-05,2]
[408138062,1773166192974,420.21,7.788e-05,2]
[408138063,1773166193216,420.21,8.177e-05,2]
[408138064,1773166193758,420.21,8.567e-05,2]
[408138065,1773166193812,420.21,8.956e-05,2]
[408138066,1773166194148,420.21,9.346e-05,2]
[408138067,1773166194373,420.21,9.735e-05,2]
[408138068,1773166194579,420.21,0.00010124,2]
[408138069,1773166194812,420.21,0.00010514,2]
[408138070,1773166195014,420.21,0.00010903,2]
[408138071,1773166195219,420.21,0.00011293,2]
[408138072,1773166195428,420.21,0.00011682,2]
[408138073,1773166195691,420.21,0.00012071,2]
[408138074,1773166195906,420.21,0.00012461,2]
[408138075,1773166196148,420.21,0.0001285,2]
[408138076,1773166196587,420.21,0.0001324,2]
[408138077,1773166196795,420.21,0.00013629,2]
[408138078,1773166197072,420.21,0.00014018,2]
[408138084,1773166232038,-420.21,0.00014408,2]
[408138085,1773166232048,-420.21,0.00014797,2]
[408138086,1773166232059,-500.0,0.00014933,2]
[408138087,1773166232068,-361.206655,0.00014995,7]
[408138088,1773166232078,-300.0,0.00015113,2]
[408138089,1773166232088,-300.0,0.00015113,2]
[408138090,1773166232098,-217.0,0.00015113,2]
[408138091,1773166232108,-1020.793345,0.00015114,2]
[408138092,1773166232143,-13163.906655,0.00015114,2]
[408138093,1773166232154,-300.0,0.00015136,2]
[408138094,1773166232164,-5640.03,0.00015137,2]
[408138095,1773166232174,-150.0,0.00015137,2]
[408138096,1773166232186,-2000.0,0.00015137,2]
[408138097,1773166232196,-150.0,0.00015137,2]